[Event "Titled Tuesday Blitz November 07 Early 2023"]
[White "Kozusek, Daniel"]
[Black "Bashirli, Saadat"]
[WhiteFideId "349500"]
[BlackFideId "13429990"]
[WhiteElo "2583"]
[BlackElo "2417"]
[Result "1/2-1/2"]
[Round "5"]
[TimeControl "180+1"]
[Date "2023.11.07"]
[WhiteClock "0:00:04"]
[BlackClock "0:00:04"]
[Board "118"]

1. d4 {[%clk 0:02:58]}  Nf6 {[%clk 0:02:57]} 2. c4 {[%clk 0:02:57]}  g6 {[%clk 0:02:57]} 3. g3 {[%clk 0:02:54]}  Bg7 {[%clk 0:02:57]} 4. Bg2 {[%clk 0:02:53]}  d6 {[%clk 0:02:57]} 5. Nc3 {[%clk 0:02:54]}  O-O {[%clk 0:02:56]} 6. h3 {[%clk 0:02:53]}  c5 {[%clk 0:02:55]} 7. e3 {[%clk 0:02:43]}  cxd4 {[%clk 0:02:51]} 8. exd4 {[%clk 0:02:42]}  Nc6 {[%clk 0:02:51]} 9. Nf3 {[%clk 0:02:36]}  Bf5 {[%clk 0:02:46]} 10. O-O {[%clk 0:02:33]}  h5 {[%clk 0:02:45]} 11. d5 {[%clk 0:02:29]}  Na5 {[%clk 0:02:36]} 12. Nd4 {[%clk 0:02:11]}  Bd7 {[%clk 0:02:29]} 13. b3 {[%clk 0:02:07]}  b6 {[%clk 0:02:24]} 14. Bb2 {[%clk 0:01:59]}  Nb7 {[%clk 0:02:21]} 15. Re1 {[%clk 0:01:58]}  a5 {[%clk 0:02:16]} 16. Nc6 {[%clk 0:01:47]}  Bxc6 {[%clk 0:02:14]} 17. dxc6 {[%clk 0:01:42]}  Nc5 {[%clk 0:02:14]} 18. c7 {[%clk 0:01:33]}  Qxc7 {[%clk 0:02:14]} 19. Bxa8 {[%clk 0:01:34]}  Rxa8 {[%clk 0:02:13]} 20. Nd5 {[%clk 0:01:34]}  Nxd5 {[%clk 0:02:08]} 21. Qxd5 {[%clk 0:01:32]}  Rd8 {[%clk 0:02:04]} 22. Bxg7 {[%clk 0:01:31]}  Kxg7 {[%clk 0:02:04]} 23. Rad1 {[%clk 0:01:31]}  Qd7 {[%clk 0:02:02]} 24. Kg2 {[%clk 0:01:29]}  Rc8 {[%clk 0:01:56]} 25. Rd2 {[%clk 0:01:25]}  Re8 {[%clk 0:01:50]} 26. Rde2 {[%clk 0:01:21]}  e6 {[%clk 0:01:46]} 27. Qd4+ {[%clk 0:01:21]}  Kg8 {[%clk 0:01:44]} 28. Rd2 {[%clk 0:01:21]}  Rd8 {[%clk 0:01:43]} 29. Red1 {[%clk 0:01:19]}  Qc6+ {[%clk 0:01:40]} 30. Kg1 {[%clk 0:01:15]}  d5 {[%clk 0:01:35]} 31. Qf6 {[%clk 0:01:10]}  Rd6 {[%clk 0:01:24]} 32. cxd5 {[%clk 0:00:50]}  exd5 {[%clk 0:01:17]} 33. Qe5 {[%clk 0:00:50]}  Ne4 {[%clk 0:00:33]} 34. Rxd5 {[%clk 0:00:43]}  Rxd5 {[%clk 0:00:30]} 35. Rxd5 {[%clk 0:00:40]}  Nf6 {[%clk 0:00:19]} 36. Rd8+ {[%clk 0:00:30]}  Kg7 {[%clk 0:00:16]} 37. Rd6 {[%clk 0:00:29]}  Qf3 {[%clk 0:00:16]} 38. Rxb6 {[%clk 0:00:22]}  Qd1+ {[%clk 0:00:11]} 39. Kg2 {[%clk 0:00:21]}  Qd8 {[%clk 0:00:11]} 40. a3 {[%clk 0:00:16]}  Qxb6 {[%clk 0:00:10]} 41. b4 {[%clk 0:00:12]}  axb4 {[%clk 0:00:10]} 42. axb4 {[%clk 0:00:13]}  Qxb4 {[%clk 0:00:10]} 43. Qa1 {[%clk 0:00:11]}  Qe4+ {[%clk 0:00:10]} 44. Kg1 {[%clk 0:00:11]}  h4 {[%clk 0:00:10]} 45. g4 {[%clk 0:00:11]}  Qf3 {[%clk 0:00:10]} 46. g5 {[%clk 0:00:07]}  Qf5 {[%clk 0:00:10]} 47. gxf6+ {[%clk 0:00:07]}  Qxf6 {[%clk 0:00:10]} 48. Qa4 {[%clk 0:00:07]}  Qg5+ {[%clk 0:00:09]} 49. Kh2 {[%clk 0:00:07]}  Qe5+ {[%clk 0:00:08]} 50. Kg2 {[%clk 0:00:06]}  Qd5+ {[%clk 0:00:08]} 51. Kh2 {[%clk 0:00:06]}  g5 {[%clk 0:00:07]} 52. Qg4 {[%clk 0:00:05]}  Qe5+ {[%clk 0:00:07]} 53. Kg2 {[%clk 0:00:06]}  Kg6 {[%clk 0:00:06]} 54. Qc4 {[%clk 0:00:05]}  Qf5 {[%clk 0:00:05]} 55. Qc6+ {[%clk 0:00:04]}  Qf6 {[%clk 0:00:04]} 56. Qe4+ {[%clk 0:00:05]}  Kg7 {[%clk 0:00:04]} 57. Qg4 {[%clk 0:00:05]}  Qc6+ {[%clk 0:00:03]} 58. Kh2 {[%clk 0:00:05]}  Qd6+ {[%clk 0:00:03]} 59. Kg2 {[%clk 0:00:05]}  Qf6 {[%clk 0:00:03]} 60. Qe4 {[%clk 0:00:05]}  Qg6 {[%clk 0:00:01]} 61. Qg4 {[%clk 0:00:05]}  Qf6 {[%clk 0:00:01]} 62. Qe2 {[%clk 0:00:04]}  Kg6 {[%clk 0:00:02]} 63. Qe4+ {[%clk 0:00:05]}  Qf5 {[%clk 0:00:02]} 64. Qe8 {[%clk 0:00:05]}  Kg7 {[%clk 0:00:02]} 65. Qe3 {[%clk 0:00:04]}  Qf6 {[%clk 0:00:03]} 66. Qe4 {[%clk 0:00:04]}  Qe6 {[%clk 0:00:03]} 67. Qd4+ {[%clk 0:00:03]}  Kg6 {[%clk 0:00:03]} 68. Qd3+ {[%clk 0:00:03]}  Qf5 {[%clk 0:00:03]} 69. Qd8 {[%clk 0:00:04]}  Qe4+ {[%clk 0:00:03]} 70. Kg1 {[%clk 0:00:03]}  Qe5 {[%clk 0:00:02]} 71. Kg2 {[%clk 0:00:03]}  Qe4+ {[%clk 0:00:03]} 72. Kg1 {[%clk 0:00:04]}  Kg7 {[%clk 0:00:03]} 73. Qd6 {[%clk 0:00:04]}  Qf3 {[%clk 0:00:02]} 74. Qd4+ {[%clk 0:00:04]}  Kg6 {[%clk 0:00:03]} 75. Qd6+ {[%clk 0:00:03]}  Qf6 {[%clk 0:00:03]} 76. Qd3+ {[%clk 0:00:03]}  Kh6 {[%clk 0:00:04]} 77. Qe4 {[%clk 0:00:03]}  Qe6 {[%clk 0:00:03]} 78. Qf3 {[%clk 0:00:03]}  Kg7 {[%clk 0:00:03]} 79. Qc3+ {[%clk 0:00:03]}  Qf6 {[%clk 0:00:03]} 80. Qe3 {[%clk 0:00:03]}  Qa1+ {[%clk 0:00:03]} 81. Kg2 {[%clk 0:00:04]}  Qa8+ {[%clk 0:00:04]} 82. Kg1 {[%clk 0:00:03]}  Qd5 {[%clk 0:00:04]} 83. Qe2 {[%clk 0:00:03]}  Kg6 {[%clk 0:00:05]} 84. Qe8 {[%clk 0:00:03]}  Qe6 {[%clk 0:00:04]} 85. Qg8+ {[%clk 0:00:03]}  Kf6 {[%clk 0:00:04]} 86. Qh8+ {[%clk 0:00:03]}  Ke7 {[%clk 0:00:05]} 87. Qg7 {[%clk 0:00:03]}  Qf6 {[%clk 0:00:05]} 88. Qh7 {[%clk 0:00:03]}  Qf3 {[%clk 0:00:04]} 89. Qh6 {[%clk 0:00:01]}  f6 {[%clk 0:00:04]} 90. Qg7+ {[%clk 0:00:01]}  Ke6 {[%clk 0:00:04]} 91. Qg8+ {[%clk 0:00:02]}  Ke5 {[%clk 0:00:04]} 92. Qe8+ {[%clk 0:00:03]}  Kf5 {[%clk 0:00:03]} 93. Qd7+ {[%clk 0:00:03]}  Kg6 {[%clk 0:00:03]} 94. Qe8+ {[%clk 0:00:04]}  Kh6 {[%clk 0:00:03]} 95. Qf8+ {[%clk 0:00:04]}  Kg6 {[%clk 0:00:03]} 96. Qg8+ {[%clk 0:00:04]}  Kf5 {[%clk 0:00:03]} 97. Qc8+ {[%clk 0:00:04]}  Ke5 {[%clk 0:00:03]} 98. Qc7+ {[%clk 0:00:04]}  Ke6 {[%clk 0:00:03]} 99. Qc8+ {[%clk 0:00:04]}  Kd6 {[%clk 0:00:03]} 100. Qd8+ {[%clk 0:00:05]}  Kc5 {[%clk 0:00:03]} 101. Qe7+ {[%clk 0:00:03]}  Kb6 {[%clk 0:00:02]} 102. Qd6+ {[%clk 0:00:03]}  Qc6 {[%clk 0:00:02]} 103. Qb4+ {[%clk 0:00:03]}  Kc7 {[%clk 0:00:02]} 104. Qe7+ {[%clk 0:00:03]}  Kb8 {[%clk 0:00:03]} 105. Qd8+ {[%clk 0:00:03]}  Ka7 {[%clk 0:00:03]} 106. Qe7+ {[%clk 0:00:03]}  Ka6 {[%clk 0:00:03]} 107. Qa3+ {[%clk 0:00:03]}  Kb6 {[%clk 0:00:03]} 108. Qb4+ {[%clk 0:00:04]}  Qb5 {[%clk 0:00:03]} 109. Qd6+ {[%clk 0:00:04]}  Qc6 {[%clk 0:00:04]} 110. Qb4+ {[%clk 0:00:04]} 1/2-1/2


[Site "https://www.chess.com"]

[Event "Titled Tuesday Blitz November 07 Early 2023"]
[White "Bogaudinov, Rushan"]
[Black "Rietze, Clemens, Dr."]
[WhiteFideId "4129288"]
[BlackFideId "24620351"]
[WhiteElo "2318"]
[BlackElo "2528"]
[Result "0-1"]
[Round "5"]
[TimeControl "180+1"]
[Date "2023.11.07"]
[WhiteClock "0:00:45"]
[BlackClock "0:00:25"]
[Board "133"]

1. d4 {[%clk 0:02:47]}  Nf6 {[%clk 0:02:59]} 2. Nf3 {[%clk 0:02:47]}  g6 {[%clk 0:02:59]} 3. g3 {[%clk 0:02:46]}  Bg7 {[%clk 0:02:59]} 4. Bg2 {[%clk 0:02:47]}  O-O {[%clk 0:03:00]} 5. O-O {[%clk 0:02:48]}  d6 {[%clk 0:03:01]} 6. b3 {[%clk 0:02:48]}  a5 {[%clk 0:03:00]} 7. a3 {[%clk 0:02:47]}  e5 {[%clk 0:02:47]} 8. Bb2 {[%clk 0:02:42]}  e4 {[%clk 0:02:45]} 9. Nfd2 {[%clk 0:02:39]}  Re8 {[%clk 0:02:37]} 10. e3 {[%clk 0:02:38]}  h5 {[%clk 0:02:37]} 11. c4 {[%clk 0:02:33]}  Bf5 {[%clk 0:02:24]} 12. Nc3 {[%clk 0:02:33]}  Nbd7 {[%clk 0:02:24]} 13. b4 {[%clk 0:02:30]}  Nf8 {[%clk 0:02:23]} 14. Nd5 {[%clk 0:02:23]}  N8h7 {[%clk 0:02:20]} 15. Nxf6+ {[%clk 0:02:18]}  Bxf6 {[%clk 0:02:15]} 16. bxa5 {[%clk 0:02:13]}  Rxa5 {[%clk 0:02:12]} 17. Qb3 {[%clk 0:02:12]}  b6 {[%clk 0:02:06]} 18. Bc3 {[%clk 0:02:08]}  Ra7 {[%clk 0:01:58]} 19. a4 {[%clk 0:02:08]}  h4 {[%clk 0:01:58]} 20. a5 {[%clk 0:02:06]}  bxa5 {[%clk 0:01:56]} 21. Rxa5 {[%clk 0:02:05]}  Rxa5 {[%clk 0:01:56]} 22. Bxa5 {[%clk 0:02:06]}  Ng5 {[%clk 0:01:43]} 23. Qb7 {[%clk 0:02:00]}  Re7 {[%clk 0:01:36]} 24. Rb1 {[%clk 0:01:57]}  Qd7 {[%clk 0:01:34]} 25. Qb8+ {[%clk 0:01:49]}  Kh7 {[%clk 0:01:26]} 26. Rb7 {[%clk 0:01:48]}  Qa4 {[%clk 0:01:13]} 27. Bxc7 {[%clk 0:01:35]}  Qd1+ {[%clk 0:01:07]} 28. Nf1 {[%clk 0:01:34]}  h3 {[%clk 0:00:58]} 29. Rb1 {[%clk 0:01:30]}  Qg4 {[%clk 0:00:54]} 30. Bxd6 {[%clk 0:01:15]}  hxg2 {[%clk 0:00:53]} 31. Nd2 {[%clk 0:01:15]}  Rd7 {[%clk 0:00:35]} 32. Bf4 {[%clk 0:01:05]}  Nh3+ {[%clk 0:00:26]} 33. Kxg2 {[%clk 0:01:03]}  Qe2 {[%clk 0:00:26]} 34. Nxe4 {[%clk 0:00:45]}  Bxe4+ {[%clk 0:00:25]} 35. Kxh3 {[%clk 0:00:45]}  Qh5# {[%clk 0:00:25]} 0-1


[Site "https://www.chess.com"]

[Event "Titled Tuesday Blitz November 07 Early 2023"]
[White "Pham, Le Thao Nguyen"]
[Black "Balla, Tamas-Kristof"]
[WhiteFideId "12401226"]
[BlackFideId "1208497"]
[WhiteElo "2527"]
[BlackElo "2315"]
[Result "1-0"]
[Round "5"]
[TimeControl "180+1"]
[Date "2023.11.07"]
[WhiteClock "0:00:07"]
[BlackClock "0:00:41"]
[Board "134"]

1. d4 {[%clk 0:03:00]}  d5 {[%clk 0:02:58]} 2. c4 {[%clk 0:02:59]}  e6 {[%clk 0:02:58]} 3. Nc3 {[%clk 0:02:59]}  c5 {[%clk 0:02:58]} 4. cxd5 {[%clk 0:02:58]}  exd5 {[%clk 0:02:59]} 5. Nf3 {[%clk 0:02:58]}  Nc6 {[%clk 0:02:59]} 6. g3 {[%clk 0:02:56]}  Nf6 {[%clk 0:02:59]} 7. Bg2 {[%clk 0:02:55]}  cxd4 {[%clk 0:02:59]} 8. Nxd4 {[%clk 0:02:56]}  Bc5 {[%clk 0:02:58]} 9. Nb3 {[%clk 0:02:53]}  Bb6 {[%clk 0:02:57]} 10. O-O {[%clk 0:02:53]}  d4 {[%clk 0:02:57]} 11. Na4 {[%clk 0:02:53]}  O-O {[%clk 0:02:57]} 12. Bg5 {[%clk 0:02:51]}  Re8 {[%clk 0:02:49]} 13. Nxb6 {[%clk 0:02:09]}  axb6 {[%clk 0:02:50]} 14. Bxc6 {[%clk 0:01:59]}  bxc6 {[%clk 0:02:51]} 15. Qxd4 {[%clk 0:01:59]}  Qxd4 {[%clk 0:02:28]} 16. Nxd4 {[%clk 0:01:58]}  c5 {[%clk 0:02:29]} 17. Bxf6 {[%clk 0:01:49]}  gxf6 {[%clk 0:02:28]} 18. Nc6 {[%clk 0:01:23]}  Rxe2 {[%clk 0:02:22]} 19. Rfe1 {[%clk 0:01:14]}  Rxb2 {[%clk 0:02:09]} 20. Ne7+ {[%clk 0:00:24]}  Kg7 {[%clk 0:02:09]} 21. Nxc8 {[%clk 0:00:19]}  Rxc8 {[%clk 0:02:09]} 22. a4 {[%clk 0:00:19]}  c4 {[%clk 0:02:08]} 23. Rec1 {[%clk 0:00:16]}  c3 {[%clk 0:02:07]} 24. Kg2 {[%clk 0:00:15]}  c2 {[%clk 0:02:06]} 25. h4 {[%clk 0:00:14]}  h5 {[%clk 0:02:05]} 26. Kf3 {[%clk 0:00:13]}  Rc3+ {[%clk 0:02:04]} 27. Ke2 {[%clk 0:00:14]}  Rc5 {[%clk 0:01:53]} 28. Kd2 {[%clk 0:00:13]}  Kg6 {[%clk 0:01:52]} 29. Ra3 {[%clk 0:00:13]}  Rb4 {[%clk 0:01:43]} 30. Rxc2 {[%clk 0:00:12]}  Rf5 {[%clk 0:01:35]} 31. Ke2 {[%clk 0:00:08]}  Re5+ {[%clk 0:01:33]} 32. Kf1 {[%clk 0:00:08]}  Ree4 {[%clk 0:01:33]} 33. Rc6 {[%clk 0:00:08]}  Rb1+ {[%clk 0:01:29]} 34. Kg2 {[%clk 0:00:08]}  Rb2 {[%clk 0:01:28]} 35. Rf3 {[%clk 0:00:07]}  Re6 {[%clk 0:01:28]} 36. Rc4 {[%clk 0:00:08]}  Ra2 {[%clk 0:01:25]} 37. Rff4 {[%clk 0:00:08]}  f5 {[%clk 0:01:20]} 38. Rb4 {[%clk 0:00:09]}  f6 {[%clk 0:01:20]} 39. Rb5 {[%clk 0:00:09]}  Re5 {[%clk 0:01:09]} 40. Rxb6 {[%clk 0:00:09]}  Re4 {[%clk 0:01:09]} 41. Rb4 {[%clk 0:00:06]}  Ree2 {[%clk 0:01:04]} 42. Rb5 {[%clk 0:00:06]}  Re4 {[%clk 0:01:05]} 43. Rbxf5 {[%clk 0:00:06]}  Raxa4 {[%clk 0:00:51]} 44. Rxf6+ {[%clk 0:00:05]}  Kg7 {[%clk 0:00:51]} 45. Rxe4 {[%clk 0:00:05]}  Rxe4 {[%clk 0:00:51]} 46. Rc6 {[%clk 0:00:05]}  Ra4 {[%clk 0:00:50]} 47. Kf3 {[%clk 0:00:06]}  Kf7 {[%clk 0:00:49]} 48. Rh6 {[%clk 0:00:04]}  Ra3+ {[%clk 0:00:46]} 49. Kf4 {[%clk 0:00:05]}  Ra5 {[%clk 0:00:46]} 50. f3 {[%clk 0:00:04]}  Kg7 {[%clk 0:00:46]} 51. Re6 {[%clk 0:00:05]}  Ra4+ {[%clk 0:00:45]} 52. Re4 {[%clk 0:00:05]}  Ra3 {[%clk 0:00:44]} 53. Re5 {[%clk 0:00:05]}  Kg6 {[%clk 0:00:44]} 54. Re6+ {[%clk 0:00:05]}  Kg7 {[%clk 0:00:44]} 55. g4 {[%clk 0:00:05]}  Ra4+ {[%clk 0:00:43]} 56. Re4 {[%clk 0:00:06]}  Ra5 {[%clk 0:00:43]} 57. Re5 {[%clk 0:00:06]}  Ra4+ {[%clk 0:00:43]} 58. Kg5 {[%clk 0:00:07]}  hxg4 {[%clk 0:00:42]} 59. fxg4 {[%clk 0:00:07]}  Ra7 {[%clk 0:00:43]} 60. h5 {[%clk 0:00:08]}  Rc7 {[%clk 0:00:42]} 61. Re6 {[%clk 0:00:07]}  Kh7 {[%clk 0:00:42]} 62. Kf5 {[%clk 0:00:07]}  Rc5+ {[%clk 0:00:43]} 63. Re5 {[%clk 0:00:07]}  Rc7 {[%clk 0:00:43]} 64. g5 {[%clk 0:00:07]}  Kg7 {[%clk 0:00:43]} 65. h6+ {[%clk 0:00:07]}  Kh7 {[%clk 0:00:43]} 66. Kg4 {[%clk 0:00:08]}  Rc1 {[%clk 0:00:40]} 67. Re7+ {[%clk 0:00:07]}  Kg6 {[%clk 0:00:41]} 68. Rg7# {[%clk 0:00:07]} 1-0


[Site "https://www.chess.com"]

[Event "Titled Tuesday Blitz November 07 Early 2023"]
[White "Alinasab, Mobina"]
[Black "ilya2700"]
[WhiteFideId "12528897"]
[WhiteElo "2527"]
[BlackElo "2307"]
[Result "1-0"]
[Round "5"]
[TimeControl "180+1"]
[Date "2023.11.07"]
[WhiteClock "0:00:13"]
[BlackClock "0:00:05"]
[Board "135"]

1. e4 {[%clk 0:01:29]}  c5 {[%clk 0:02:55]} 2. Nf3 {[%clk 0:01:29]}  e6 {[%clk 0:02:55]} 3. d4 {[%clk 0:01:29]}  cxd4 {[%clk 0:02:54]} 4. Nxd4 {[%clk 0:01:30]}  Nf6 {[%clk 0:02:54]} 5. Nc3 {[%clk 0:01:30]}  Nc6 {[%clk 0:02:54]} 6. Be2 {[%clk 0:01:29]}  Bb4 {[%clk 0:02:54]} 7. O-O {[%clk 0:01:28]}  O-O {[%clk 0:02:49]} 8. Nxc6 {[%clk 0:01:23]}  bxc6 {[%clk 0:02:48]} 9. e5 {[%clk 0:01:23]}  Nd5 {[%clk 0:02:47]} 10. Qd4 {[%clk 0:01:23]}  Be7 {[%clk 0:02:46]} 11. Ne4 {[%clk 0:01:23]}  f5 {[%clk 0:02:44]} 12. Nd6 {[%clk 0:01:20]}  Bxd6 {[%clk 0:02:43]} 13. exd6 {[%clk 0:01:21]}  Re8 {[%clk 0:02:38]} 14. c4 {[%clk 0:01:19]}  Nf6 {[%clk 0:02:38]} 15. Bf4 {[%clk 0:01:15]}  a5 {[%clk 0:02:11]} 16. Be5 {[%clk 0:01:14]}  Rb8 {[%clk 0:02:10]} 17. b3 {[%clk 0:01:06]}  Rf8 {[%clk 0:01:42]} 18. Rab1 {[%clk 0:01:03]}  Rf7 {[%clk 0:01:41]} 19. Qa7 {[%clk 0:00:50]}  Rb7 {[%clk 0:01:25]} 20. Qa8 {[%clk 0:00:50]}  Rf8 {[%clk 0:01:25]} 21. c5 {[%clk 0:00:34]}  Ne4 {[%clk 0:01:13]} 22. Rbc1 {[%clk 0:00:34]}  Qg5 {[%clk 0:00:48]} 23. f4 {[%clk 0:00:34]}  Qd8 {[%clk 0:00:45]} 24. Ba6 {[%clk 0:00:33]}  Rb4 {[%clk 0:00:44]} 25. Bxc8 {[%clk 0:00:29]}  Qxc8 {[%clk 0:00:45]} 26. Qxa5 {[%clk 0:00:29]}  Rb5 {[%clk 0:00:45]} 27. Qa3 {[%clk 0:00:28]}  Qb7 {[%clk 0:00:45]} 28. Bd4 {[%clk 0:00:24]}  Ra8 {[%clk 0:00:38]} 29. Qb2 {[%clk 0:00:24]}  Qa7 {[%clk 0:00:28]} 30. b4 {[%clk 0:00:18]}  Qxa2 {[%clk 0:00:26]} 31. Ra1 {[%clk 0:00:17]}  Qxa1 {[%clk 0:00:14]} 32. Rxa1 {[%clk 0:00:16]}  Rxa1+ {[%clk 0:00:15]} 33. Qxa1 {[%clk 0:00:16]}  Rxb4 {[%clk 0:00:15]} 34. Bxg7 {[%clk 0:00:16]}  Nxc5 {[%clk 0:00:13]} 35. Be5 {[%clk 0:00:15]}  Ne4 {[%clk 0:00:11]} 36. Qa8+ {[%clk 0:00:15]}  Kf7 {[%clk 0:00:11]} 37. h3 {[%clk 0:00:16]}  h5 {[%clk 0:00:10]} 38. Qh8 {[%clk 0:00:15]}  h4 {[%clk 0:00:05]} 39. Qxh4 {[%clk 0:00:14]}  c5 {[%clk 0:00:04]} 40. Qe7+ {[%clk 0:00:14]}  Kg6 {[%clk 0:00:04]} 41. Qxd7 {[%clk 0:00:14]}  Kh5 {[%clk 0:00:04]} 42. Qxe6 {[%clk 0:00:13]}  Kh4 {[%clk 0:00:04]} 43. Qh6+ {[%clk 0:00:12]}  Kg3 {[%clk 0:00:04]} 44. Qg6+ {[%clk 0:00:12]}  Kh4 {[%clk 0:00:04]} 45. Bf6+ {[%clk 0:00:12]}  Nxf6 {[%clk 0:00:04]} 46. Qxf6+ {[%clk 0:00:13]}  Kg3 {[%clk 0:00:05]} 47. Qg5# {[%clk 0:00:13]} 1-0


[Site "https://www.chess.com"]

[Event "Titled Tuesday Blitz November 07 Early 2023"]
[White "Kohler, Aran"]
[Black "Dushyant Sharma"]
[WhiteFideId "1002856"]
[BlackFideId "25065130"]
[WhiteElo "2297"]
[BlackElo "2524"]
[Result "0-1"]
[Round "5"]
[TimeControl "180+1"]
[Date "2023.11.07"]
[WhiteClock "0:00:06"]
[BlackClock "0:00:40"]
[Board "137"]

1. d4 {[%clk 0:03:00]}  d5 {[%clk 0:02:58]} 2. Nf3 {[%clk 0:03:00]}  e6 {[%clk 0:02:59]} 3. Bf4 {[%clk 0:02:58]}  f5 {[%clk 0:02:58]} 4. e3 {[%clk 0:02:52]}  Bd6 {[%clk 0:02:58]} 5. Ne5 {[%clk 0:02:45]}  Nf6 {[%clk 0:02:59]} 6. Nd2 {[%clk 0:02:38]}  O-O {[%clk 0:02:58]} 7. h3 {[%clk 0:02:38]}  c5 {[%clk 0:02:58]} 8. c3 {[%clk 0:02:38]}  Nc6 {[%clk 0:02:59]} 9. Nxc6 {[%clk 0:02:29]}  bxc6 {[%clk 0:02:58]} 10. Bxd6 {[%clk 0:02:29]}  Qxd6 {[%clk 0:02:59]} 11. Nf3 {[%clk 0:02:13]}  Ne4 {[%clk 0:02:54]} 12. Bd3 {[%clk 0:02:11]}  Rb8 {[%clk 0:02:51]} 13. Rb1 {[%clk 0:02:08]}  cxd4 {[%clk 0:02:48]} 14. exd4 {[%clk 0:02:06]}  c5 {[%clk 0:02:46]} 15. O-O {[%clk 0:02:01]}  Ba6 {[%clk 0:02:42]} 16. Ne5 {[%clk 0:01:42]}  cxd4 {[%clk 0:02:21]} 17. cxd4 {[%clk 0:01:38]}  Rb4 {[%clk 0:02:16]} 18. Bxa6 {[%clk 0:01:34]}  Qxa6 {[%clk 0:02:17]} 19. a3 {[%clk 0:01:34]}  Rb7 {[%clk 0:01:53]} 20. f3 {[%clk 0:01:34]}  Ng3 {[%clk 0:01:48]} 21. Re1 {[%clk 0:01:33]}  f4 {[%clk 0:01:49]} 22. Kh2 {[%clk 0:01:23]}  Rfb8 {[%clk 0:01:42]} 23. Nd3 {[%clk 0:01:16]}  Qd6 {[%clk 0:01:32]} 24. b4 {[%clk 0:01:08]}  Nf5 {[%clk 0:01:32]} 25. Nc5 {[%clk 0:01:06]}  Re7 {[%clk 0:01:26]} 26. Re5 {[%clk 0:01:06]}  Rbe8 {[%clk 0:01:26]} 27. Qa4 {[%clk 0:01:03]}  Nxd4 {[%clk 0:01:23]} 28. Rbe1 {[%clk 0:01:02]}  h6 {[%clk 0:01:10]} 29. Qd1 {[%clk 0:00:43]}  Nb5 {[%clk 0:01:07]} 30. Qd3 {[%clk 0:00:31]}  a6 {[%clk 0:01:01]} 31. a4 {[%clk 0:00:23]}  Na7 {[%clk 0:01:01]} 32. Qg6 {[%clk 0:00:23]}  Nc6 {[%clk 0:00:58]} 33. Rxe6 {[%clk 0:00:22]}  Rxe6 {[%clk 0:00:58]} 34. Rxe6 {[%clk 0:00:22]}  Rxe6 {[%clk 0:00:58]} 35. Nxe6 {[%clk 0:00:22]}  Qe7 {[%clk 0:00:50]} 36. Nxf4 {[%clk 0:00:21]}  Nxb4 {[%clk 0:00:47]} 37. Nh5 {[%clk 0:00:14]}  d4 {[%clk 0:00:45]} 38. f4 {[%clk 0:00:13]}  d3 {[%clk 0:00:45]} 39. f5 {[%clk 0:00:12]}  d2 {[%clk 0:00:41]} 40. f6 {[%clk 0:00:11]}  Qc7+ {[%clk 0:00:42]} 41. g3 {[%clk 0:00:10]}  d1=Q {[%clk 0:00:41]} 42. Qe8+ {[%clk 0:00:09]}  Kh7 {[%clk 0:00:41]} 43. fxg7 {[%clk 0:00:06]}  Qcc2+ {[%clk 0:00:40]} 0-1


[Site "https://www.chess.com"]

[Event "Titled Tuesday Blitz November 07 Early 2023"]
[White "Tifferet, Shaked"]
[Black "Gaikwad, Siddhant"]
[WhiteFideId "2811529"]
[BlackFideId "25010239"]
[WhiteElo "2518"]
[BlackElo "2274"]
[Result "1-0"]
[Round "5"]
[TimeControl "180+1"]
[Date "2023.11.07"]
[WhiteClock "0:02:04"]
[BlackClock "0:01:05"]
[Board "139"]

1. d4 {[%clk 0:03:00]}  Nf6 {[%clk 0:02:59]} 2. Nc3 {[%clk 0:03:00]}  c5 {[%clk 0:02:52]} 3. dxc5 {[%clk 0:02:55]}  e6 {[%clk 0:02:51]} 4. e4 {[%clk 0:02:50]}  Bxc5 {[%clk 0:02:49]} 5. e5 {[%clk 0:02:47]}  Ng8 {[%clk 0:02:22]} 6. Ne4 {[%clk 0:02:45]}  Qb6 {[%clk 0:02:17]} 7. Nxc5 {[%clk 0:02:41]}  Qxc5 {[%clk 0:02:16]} 8. Nf3 {[%clk 0:02:41]}  Nc6 {[%clk 0:02:15]} 9. Be3 {[%clk 0:02:36]}  Qb4+ {[%clk 0:02:14]} 10. Qd2 {[%clk 0:02:30]}  Qxb2 {[%clk 0:02:12]} 11. Rd1 {[%clk 0:02:30]}  Nxe5 {[%clk 0:02:10]} 12. Bd4 {[%clk 0:02:27]}  Nxf3+ {[%clk 0:02:09]} 13. gxf3 {[%clk 0:02:28]}  Qa3 {[%clk 0:01:56]} 14. Bxg7 {[%clk 0:02:27]}  f6 {[%clk 0:01:33]} 15. Bxh8 {[%clk 0:02:24]}  Qf8 {[%clk 0:01:25]} 16. Rg1 {[%clk 0:02:20]}  Ne7 {[%clk 0:01:22]} 17. Bg7 {[%clk 0:02:18]}  Qg8 {[%clk 0:01:19]} 18. Qh6 {[%clk 0:02:05]}  Nf5 {[%clk 0:01:05]} 19. Qxf6 {[%clk 0:02:04]} 1-0


[Site "https://www.chess.com"]

[Event "Titled Tuesday Blitz November 07 Early 2023"]
[White "Rodriguez Dominguez, Melissa"]
[Black "arenal72"]
[WhiteFideId "3517560"]
[WhiteElo "2254"]
[BlackElo "2514"]
[Result "0-1"]
[Round "5"]
[TimeControl "180+1"]
[Date "2023.11.07"]
[WhiteClock "0:00:08"]
[BlackClock "0:01:17"]
[Board "141"]

1. e4 {[%clk 0:02:38]}  Nc6 {[%clk 0:02:55]} 2. Nf3 {[%clk 0:02:26]}  d6 {[%clk 0:02:54]} 3. d4 {[%clk 0:02:25]}  Nf6 {[%clk 0:02:54]} 4. Nc3 {[%clk 0:02:24]}  g6 {[%clk 0:02:54]} 5. Be3 {[%clk 0:02:22]}  Bg7 {[%clk 0:02:52]} 6. Qd2 {[%clk 0:02:21]}  a6 {[%clk 0:02:52]} 7. Bh6 {[%clk 0:02:19]}  O-O {[%clk 0:02:51]} 8. h4 {[%clk 0:02:13]}  Bg4 {[%clk 0:02:44]} 9. Bxg7 {[%clk 0:02:09]}  Kxg7 {[%clk 0:02:43]} 10. Nh2 {[%clk 0:02:07]}  b5 {[%clk 0:02:30]} 11. f3 {[%clk 0:02:06]}  Bd7 {[%clk 0:02:25]} 12. g4 {[%clk 0:02:05]}  e5 {[%clk 0:02:23]} 13. d5 {[%clk 0:01:54]}  Nd4 {[%clk 0:02:23]} 14. Ne2 {[%clk 0:01:54]}  Nxe4 {[%clk 0:01:57]} 15. fxe4 {[%clk 0:01:45]}  Qxh4+ {[%clk 0:01:56]} 16. Kd1 {[%clk 0:01:42]}  Bxg4 {[%clk 0:01:56]} 17. Nxg4 {[%clk 0:01:02]}  Qxh1 {[%clk 0:01:52]} 18. Ng3 {[%clk 0:01:03]}  Qf3+ {[%clk 0:01:51]} 19. Be2 {[%clk 0:01:01]}  Nxe2 {[%clk 0:01:49]} 20. Qh6+ {[%clk 0:00:50]}  Kg8 {[%clk 0:01:49]} 21. Nf6+ {[%clk 0:00:30]}  Qxf6 {[%clk 0:01:45]} 22. Nh5 {[%clk 0:00:20]}  Qh8 {[%clk 0:01:25]} 23. Kxe2 {[%clk 0:00:20]}  f6 {[%clk 0:01:22]} 24. Rg1 {[%clk 0:00:18]}  Kf7 {[%clk 0:01:21]} 25. Nxf6 {[%clk 0:00:16]}  Kxf6 {[%clk 0:01:17]} 26. Rf1+ {[%clk 0:00:12]}  Ke7 {[%clk 0:01:17]} 27. Qg5+ {[%clk 0:00:08]}  Rf6 {[%clk 0:01:17]} 0-1


[Site "https://www.chess.com"]